[Event "*** Titled Tuesday Blitz"]
[Site "Chess.com"]
[Date "2021.04.06"]
[Round "1"]
[White "guillembaches"]
[Black "MIJuanReyesRosa"]
[Result "1-0"]
[WhiteElo "2490"]
[BlackElo "2003"]
[TimeControl "180+1"]
[EndTime "10:07:24 PDT"]
[Termination "guillembaches won on time"]

1. e4 {[%clk 0:03:00.9]} 1... c5 {[%clk 0:02:57.6]} 2. Nf3 {[%clk 0:03:01]} 2...
e6 {[%clk 0:02:57.5]} 3. c4 {[%clk 0:03:00.7]} 3... a6 {[%clk 0:02:57.1]} 4. Nc3
{[%clk 0:03:00.8]} 4... Qc7 {[%clk 0:02:57.3]} 5. Be2 {[%clk 0:03:00.9]} 5... d6
{[%clk 0:02:56.7]} 6. O-O {[%clk 0:03:00.8]} 6... Nf6 {[%clk 0:02:57]} 7. d4
{[%clk 0:03:00.2]} 7... cxd4 {[%clk 0:02:57]} 8. Nxd4 {[%clk 0:03:00.6]} 8... b6
{[%clk 0:02:56.9]} 9. Be3 {[%clk 0:03:00.9]} 9... Bb7 {[%clk 0:02:56.8]} 10. f3
{[%clk 0:03:01.1]} 10... Be7 {[%clk 0:02:56.6]} 11. Qd2 {[%clk 0:02:59]} 11...
Nbd7 {[%clk 0:02:56.2]} 12. a4 {[%clk 0:02:56.2]} 12... O-O {[%clk 0:02:53.6]}
13. a5 {[%clk 0:02:54.6]} 13... bxa5 {[%clk 0:02:48.4]} 14. Nb3 {[%clk
0:02:54.5]} 14... Rac8 {[%clk 0:02:43.4]} 15. Nxa5 {[%clk 0:02:53]} 15... Nc5
{[%clk 0:02:30.3]} 16. b4 {[%clk 0:02:42.8]} 16... Ncd7 {[%clk 0:02:20.8]} 17.
Nxb7 {[%clk 0:02:41.2]} 17... Qxb7 {[%clk 0:02:21]} 18. Rfb1 {[%clk 0:02:33.1]}
18... d5 {[%clk 0:02:02.7]} 19. c5 {[%clk 0:02:16.1]} 19... Ra8 {[%clk
0:01:37.7]} 20. exd5 {[%clk 0:01:59.8]} 20... Nxd5 {[%clk 0:01:32.7]} 21. Nxd5
{[%clk 0:01:58.4]} 21... exd5 {[%clk 0:01:24.6]} 22. Rd1 {[%clk 0:01:50.2]}
22... a5 {[%clk 0:01:07.4]} 23. Qxd5 {[%clk 0:01:31.2]} 23... Qxd5 {[%clk
0:01:00.2]} 24. Rxd5 {[%clk 0:01:32.1]} 24... Nf6 {[%clk 0:01:00.3]} 25. Re5
{[%clk 0:01:29.4]} 25... Rfe8 {[%clk 0:00:35.2]} 26. bxa5 {[%clk 0:01:20.6]}
26... Nd7 {[%clk 0:00:28.7]} 27. Rd5 {[%clk 0:01:00.5]} 27... Bxc5 {[%clk
0:00:23.8]} 28. Bxc5 {[%clk 0:00:43.2]} 28... Nxc5 {[%clk 0:00:23.2]} 29. Bb5
{[%clk 0:00:37.6]} 29... Rec8 {[%clk 0:00:21.7]} 30. Rc1 {[%clk 0:00:35.9]}
30... Nb3 {[%clk 0:00:18]} 31. Rxc8+ {[%clk 0:00:32.7]} 31... Rxc8 {[%clk
0:00:18.2]} 32. a6 {[%clk 0:00:31.9]} 32... g6 {[%clk 0:00:07.9]} 33. a7 {[%clk
0:00:28.6]} 33... Ra8 {[%clk 0:00:05.6]} 34. Rd7 {[%clk 0:00:28.7]} 34... Na5
{[%clk 0:00:05.9]} 35. Bd3 {[%clk 0:00:21.5]} 35... Nc6 {[%clk 0:00:01.2]} 36.
Be4 {[%clk 0:00:19.3]} 36... Rxa7 {[%clk 0:00:01.3]} 37. Bxc6 {[%clk 0:00:19.2]}
1-0

[Event "*** Titled Tuesday Blitz"]
[Site "Chess.com"]
[Date "2021.04.06"]
[Round "1"]
[White "j2806"]
[Black "Horizonevent"]
[Result "1-0"]
[WhiteElo "2158"]
[BlackElo "2505"]
[TimeControl "180+1"]
[EndTime "10:07:26 PDT"]
[Termination "j2806 won by resignation"]

1. e4 {[%clk 0:02:47.2]} 1... e5 {[%clk 0:02:55]} 2. Nf3 {[%clk 0:02:46.3]} 2...
Nc6 {[%clk 0:02:53.1]} 3. Bb5 {[%clk 0:02:43.1]} 3... a6 {[%clk 0:02:51.6]} 4.
Ba4 {[%clk 0:02:41.9]} 4... Nf6 {[%clk 0:02:51]} 5. d3 {[%clk 0:02:41.6]} 5...
d6 {[%clk 0:02:41]} 6. c3 {[%clk 0:02:41.3]} 6... Be7 {[%clk 0:02:40.6]} 7. O-O
{[%clk 0:02:39.8]} 7... O-O {[%clk 0:02:40.5]} 8. Nbd2 {[%clk 0:02:38.6]} 8...
b5 {[%clk 0:02:38.5]} 9. Bb3 {[%clk 0:02:38.1]} 9... Na5 {[%clk 0:02:38.2]} 10.
Bc2 {[%clk 0:02:38.4]} 10... c5 {[%clk 0:02:38.8]} 11. h3 {[%clk 0:02:37.9]}
11... Nc6 {[%clk 0:02:37.5]} 12. Re1 {[%clk 0:02:38.4]} 12... Qc7 {[%clk
0:02:30.1]} 13. Nf1 {[%clk 0:02:29.4]} 13... d5 {[%clk 0:02:23]} 14. exd5 {[%clk
0:02:21.9]} 14... Nxd5 {[%clk 0:02:23]} 15. Ng3 {[%clk 0:02:17.3]} 15... f5
{[%clk 0:01:42.6]} 16. Bg5 {[%clk 0:02:11.5]} 16... Bd6 {[%clk 0:01:23.8]} 17.
d4 {[%clk 0:01:54.9]} 17... cxd4 {[%clk 0:01:17.8]} 18. cxd4 {[%clk 0:01:54.4]}
18... e4 {[%clk 0:01:18]} 19. Ne5 {[%clk 0:01:48.7]} 19... Be6 {[%clk
0:00:56.8]} 20. Nxc6 {[%clk 0:01:36.5]} 20... Qxc6 {[%clk 0:00:56.1]} 21. Rc1
{[%clk 0:01:36.2]} 21... Qd7 {[%clk 0:00:42.8]} 22. Bd2 {[%clk 0:01:14.4]} 22...
e3 {[%clk 0:00:37.9]} 23. Ba5 {[%clk 0:00:59.7]} 23... exf2+ {[%clk 0:00:34.1]}
24. Kxf2 {[%clk 0:00:58.2]} 24... f4 {[%clk 0:00:29.6]} 25. Ne4 {[%clk
0:00:56.3]} 25... Ne3 {[%clk 0:00:29.9]} 26. Qf3 {[%clk 0:00:48.9]} 26... Bd5
{[%clk 0:00:26.4]} 27. Kg1 {[%clk 0:00:37.9]} 27... Rae8 {[%clk 0:00:26.3]} 28.
Bb3 {[%clk 0:00:30.8]} 28... Bxb3 {[%clk 0:00:25.7]} 29. axb3 {[%clk 0:00:30.7]}
29... Be7 {[%clk 0:00:23.8]} 30. Bc3 {[%clk 0:00:27.3]} 30... Bh4 {[%clk
0:00:23.3]} 31. Rf1 {[%clk 0:00:25.8]} 31... Nxf1 {[%clk 0:00:22.8]} 32. Rxf1
{[%clk 0:00:24.1]} 32... Kh8 {[%clk 0:00:21.5]} 33. Qh5 {[%clk 0:00:22]} 33...
Rxe4 {[%clk 0:00:20.5]} 34. Qxh4 {[%clk 0:00:21.3]} 34... f3 {[%clk 0:00:21]}
35. Qxe4 {[%clk 0:00:20.6]} 35... h5 {[%clk 0:00:18.9]} 36. Rxf3 {[%clk
0:00:19.5]} 36... Rxf3 {[%clk 0:00:19.2]} 37. Qxf3 {[%clk 0:00:20]} 37... Qe6
{[%clk 0:00:18]} 38. d5 {[%clk 0:00:19]} 38... Qg6 {[%clk 0:00:18]} 39. Qf8+
{[%clk 0:00:16.9]} 39... Kh7 {[%clk 0:00:18.5]} 40. Qf3 {[%clk 0:00:14.1]} 40...
h4 {[%clk 0:00:18.4]} 41. Qf2 {[%clk 0:00:13.7]} 41... Qb1+ {[%clk 0:00:18.4]}
42. Qf1 {[%clk 0:00:13.6]} 42... Qe4 {[%clk 0:00:18.9]} 43. d6 {[%clk
0:00:13.4]} 43... Qe3+ {[%clk 0:00:18.8]} 44. Kh1 {[%clk 0:00:12.9]} 44... Qg3
{[%clk 0:00:18.6]} 45. Qd1 {[%clk 0:00:12.7]} 45... Qf4 {[%clk 0:00:14.6]} 46.
d7 {[%clk 0:00:12.3]} 1-0

[Event "*** Titled Tuesday Blitz"]
[Site "Chess.com"]
[Date "2021.04.06"]
[Round "1"]
[White "FGHSMN"]
[Black "garicradomir"]
[Result "1-0"]
[WhiteElo "2577"]
[BlackElo "2267"]
[TimeControl "180+1"]
[EndTime "10:07:27 PDT"]
[Termination "FGHSMN won on time"]

1. e4 {[%clk 0:03:00.9]} 1... Nc6 {[%clk 0:02:56.3]} 2. d4 {[%clk 0:03:00.1]}
2... e5 {[%clk 0:02:55.6]} 3. d5 {[%clk 0:02:59.9]} 3... Nce7 {[%clk 0:02:54.8]}
4. c4 {[%clk 0:03:00.4]} 4... Ng6 {[%clk 0:02:54.9]} 5. Nc3 {[%clk 0:03:00.6]}
5... Bc5 {[%clk 0:02:54.6]} 6. Bd3 {[%clk 0:03:00.3]} 6... d6 {[%clk 0:02:52.3]}
7. Nge2 {[%clk 0:02:59.3]} 7... Nf6 {[%clk 0:02:47.1]} 8. Na4 {[%clk 0:02:56.8]}
8... Bb4+ {[%clk 0:02:47.2]} 9. Bd2 {[%clk 0:02:56.1]} 9... Bxd2+ {[%clk
0:02:44.2]} 10. Qxd2 {[%clk 0:02:57]} 10... a6 {[%clk 0:02:43.3]} 11. Nac3
{[%clk 0:02:53.8]} 11... O-O {[%clk 0:02:42.2]} 12. h4 {[%clk 0:02:48.2]} 12...
h5 {[%clk 0:02:38.3]} 13. O-O-O {[%clk 0:02:43.5]} 13... Bd7 {[%clk 0:02:36.4]}
14. g3 {[%clk 0:02:42.6]} 14... b5 {[%clk 0:02:35.9]} 15. f4 {[%clk 0:02:42.2]}
15... b4 {[%clk 0:02:23.3]} 16. Nb1 {[%clk 0:02:39.4]} 16... a5 {[%clk
0:02:19.5]} 17. f5 {[%clk 0:02:37.3]} 17... Ne7 {[%clk 0:02:17.7]} 18. Rdf1
{[%clk 0:02:29.4]} 18... Qb8 {[%clk 0:02:12.9]} 19. g4 {[%clk 0:02:14]} 19...
Nxg4 {[%clk 0:02:11.8]} 20. f6 {[%clk 0:02:08.6]} 20... Ng6 {[%clk 0:02:06.9]}
21. fxg7 {[%clk 0:02:05]} 21... Kxg7 {[%clk 0:02:06.7]} 22. Ng3 {[%clk
0:02:02.1]} 22... Rh8 {[%clk 0:02:01.4]} 23. Qg5 {[%clk 0:01:46.7]} 23... Qb6
{[%clk 0:01:38.9]} 24. Nf5+ {[%clk 0:01:06.4]} 24... Kf8 {[%clk 0:01:24.5]} 25.
Nd2 {[%clk 0:01:01.9]} 25... Bxf5 {[%clk 0:01:12.5]} 26. Qxf5 {[%clk 0:00:33.6]}
26... Nf4 {[%clk 0:01:08.4]} 27. Bc2 {[%clk 0:00:20.1]} 27... Qe3 {[%clk
0:01:07]} 28. Rf3 {[%clk 0:00:19]} 28... Qd4 {[%clk 0:00:41.1]} 29. Rhf1 {[%clk
0:00:18.6]} 29... Rh6 {[%clk 0:00:34.9]} 30. Qg5 {[%clk 0:00:17]} 30... Rg6
{[%clk 0:00:31.2]} 31. Rxf4 {[%clk 0:00:16.2]} 31... exf4 {[%clk 0:00:24.6]} 32.
Qxh5 {[%clk 0:00:15.7]} 32... Qe3 {[%clk 0:00:14.7]} 33. e5 {[%clk 0:00:14.5]}
33... Qxe5 {[%clk 0:00:12.5]} 34. Bxg6 {[%clk 0:00:13.3]} 34... fxg6 {[%clk
0:00:08.7]} 35. Qxg6 {[%clk 0:00:14.2]} 35... Ne3 {[%clk 0:00:05.6]} 36. Rg1
{[%clk 0:00:12.9]} 36... Re8 {[%clk 0:00:02.6]} 37. Qh7 {[%clk 0:00:11.4]} 1-0

[Event "*** Titled Tuesday Blitz"]
[Site "Chess.com"]
[Date "2021.04.06"]
[Round "1"]
[White "IriBu"]
[Black "svilson23"]
[Result "1-0"]
[WhiteElo "2560"]
[BlackElo "2243"]
[TimeControl "180+1"]
[EndTime "10:07:28 PDT"]
[Termination "IriBu won on time"]

1. e4 {[%clk 0:02:59.6]} 1... c6 {[%clk 0:02:54.7]} 2. d4 {[%clk 0:02:57]} 2...
d5 {[%clk 0:02:54.4]} 3. e5 {[%clk 0:02:56.3]} 3... c5 {[%clk 0:02:54.5]} 4.
dxc5 {[%clk 0:02:54.8]} 4... e6 {[%clk 0:02:52.1]} 5. a3 {[%clk 0:02:54.5]} 5...
Bxc5 {[%clk 0:02:48.5]} 6. b4 {[%clk 0:02:54.3]} 6... Bb6 {[%clk 0:02:42.3]} 7.
Nf3 {[%clk 0:02:46.9]} 7... a5 {[%clk 0:02:23.1]} 8. b5 {[%clk 0:02:43.6]} 8...
a4 {[%clk 0:02:09.3]} 9. Bd3 {[%clk 0:02:43.1]} 9... Ne7 {[%clk 0:02:09.2]} 10.
O-O {[%clk 0:02:42.8]} 10... Ng6 {[%clk 0:02:06.2]} 11. c4 {[%clk 0:02:41]}
11... O-O {[%clk 0:02:01.4]} 12. Bb2 {[%clk 0:02:18.8]} 12... dxc4 {[%clk
0:01:39.6]} 13. Bxc4 {[%clk 0:02:18.1]} 13... Nd7 {[%clk 0:01:39.1]} 14. Qe2
{[%clk 0:02:13.5]} 14... Qc7 {[%clk 0:01:35.8]} 15. Rc1 {[%clk 0:01:59.3]} 15...
Nc5 {[%clk 0:01:35.7]} 16. Nbd2 {[%clk 0:01:52]} 16... Bd7 {[%clk 0:01:27.3]}
17. g3 {[%clk 0:01:46]} 17... Rac8 {[%clk 0:01:15.9]} 18. Ne4 {[%clk 0:01:43]}
18... Qb8 {[%clk 0:01:15.9]} 19. Bd4 {[%clk 0:01:39.5]} 19... Qa7 {[%clk
0:01:14.2]} 20. Nd6 {[%clk 0:01:37.9]} 20... Rc7 {[%clk 0:01:10.7]} 21. Bb2
{[%clk 0:01:37.2]} 21... Ne7 {[%clk 0:00:53.7]} 22. h4 {[%clk 0:01:34.2]} 22...
Nd5 {[%clk 0:00:47.5]} 23. Ng5 {[%clk 0:01:29.9]} 23... h6 {[%clk 0:00:44]} 24.
Nf3 {[%clk 0:01:24.3]} 24... Nb3 {[%clk 0:00:35.8]} 25. Bxb3 {[%clk 0:01:21.2]}
25... axb3 {[%clk 0:00:36.7]} 26. Kg2 {[%clk 0:01:08.9]} 26... Qa4 {[%clk
0:00:32.5]} 27. Rc4 {[%clk 0:01:02.1]} 27... Rxc4 {[%clk 0:00:30.5]} 28. Qxc4
{[%clk 0:00:57.1]} 28... Qxc4 {[%clk 0:00:26.4]} 29. Nxc4 {[%clk 0:00:58]} 29...
Bxb5 {[%clk 0:00:26.8]} 30. Nd6 {[%clk 0:00:50.8]} 30... Ba4 {[%clk 0:00:19.3]}
31. Rc1 {[%clk 0:00:45]} 31... Bc7 {[%clk 0:00:19.5]} 32. Nxb7 {[%clk
0:00:43.9]} 32... Rb8 {[%clk 0:00:16.5]} 33. Nc5 {[%clk 0:00:40.1]} 33... Be8
{[%clk 0:00:14.9]} 34. Nd2 {[%clk 0:00:37.6]} 34... Bc6 {[%clk 0:00:07.9]} 35.
f3 {[%clk 0:00:32.5]} 35... Ba8 {[%clk 0:00:05.1]} 36. Ndxb3 {[%clk 0:00:27.1]}
36... Ne3+ {[%clk 0:00:04.4]} 37. Kf2 {[%clk 0:00:26.9]} 37... Nd5 {[%clk
0:00:02.6]} 38. Bd4 {[%clk 0:00:26.5]} 38... Bb6 {[%clk 0:00:02]} 39. a4 {[%clk
0:00:26.7]} 39... Bxc5 {[%clk 0:00:02]} 40. Nxc5 {[%clk 0:00:27.2]} 40... Rb4
{[%clk 0:00:01.6]} 41. Be3 {[%clk 0:00:23.3]} 41... Bc6 {[%clk 0:00:01.6]} 42.
a5 {[%clk 0:00:21.4]} 1-0

[Event "*** Titled Tuesday Blitz"]
[Site "Chess.com"]
[Date "2021.04.06"]
[Round "1"]
[White "VitaliyBernadskiy"]
[Black "DrRiebert"]
[Result "0-1"]
[WhiteElo "2790"]
[BlackElo "2444"]
[TimeControl "180+1"]
[EndTime "10:07:30 PDT"]
[Termination "DrRiebert won on time"]

1. d4 {[%clk 0:03:00.9]} 1... d5 {[%clk 0:02:54.5]} 2. Nf3 {[%clk 0:03:01.8]}
2... Nf6 {[%clk 0:02:54.7]} 3. c4 {[%clk 0:03:02.2]} 3... c6 {[%clk 0:02:55.2]}
4. Nc3 {[%clk 0:03:01.7]} 4... dxc4 {[%clk 0:02:55.3]} 5. e4 {[%clk 0:03:02]}
5... b5 {[%clk 0:02:54.7]} 6. Be2 {[%clk 0:03:01.5]} 6... b4 {[%clk 0:02:51.4]}
7. Na4 {[%clk 0:02:51.9]} 7... Nxe4 {[%clk 0:02:51.1]} 8. Bxc4 {[%clk
0:02:51.8]} 8... e6 {[%clk 0:02:51.7]} 9. Qe2 {[%clk 0:02:44.7]} 9... Nf6 {[%clk
0:02:48.1]} 10. Bg5 {[%clk 0:02:42.5]} 10... Be7 {[%clk 0:02:48.3]} 11. Nc5
{[%clk 0:02:38.2]} 11... O-O {[%clk 0:02:46.4]} 12. O-O-O {[%clk 0:02:33.4]}
12... Nbd7 {[%clk 0:02:45.6]} 13. Bxf6 {[%clk 0:02:02.9]} 13... Nxf6 {[%clk
0:02:39.6]} 14. Ne5 {[%clk 0:02:02]} 14... Qc7 {[%clk 0:02:32.9]} 15. Rd3 {[%clk
0:01:53.3]} 15... Nd5 {[%clk 0:02:27.4]} 16. Rg3 {[%clk 0:01:50.8]} 16... Bxc5
{[%clk 0:02:15.7]} 17. dxc5 {[%clk 0:01:48.1]} 17... f6 {[%clk 0:02:12.7]} 18.
Nd3 {[%clk 0:01:42.8]} 18... a5 {[%clk 0:02:11.4]} 19. h4 {[%clk 0:01:36.4]}
19... Kh8 {[%clk 0:02:11.4]} 20. h5 {[%clk 0:01:36.1]} 20... e5 {[%clk
0:02:11.8]} 21. Rh4 {[%clk 0:01:17.1]} 21... Bf5 {[%clk 0:02:10.9]} 22. Qf3
{[%clk 0:01:09.1]} 22... Bxd3 {[%clk 0:01:59.2]} 23. Qxd3 {[%clk 0:00:55.6]}
23... Nf4 {[%clk 0:01:53.1]} 24. Qf5 {[%clk 0:00:44.6]} 24... Rad8 {[%clk
0:01:50.9]} 25. Rhg4 {[%clk 0:00:40.1]} 25... Qd7 {[%clk 0:01:09.5]} 26. Qxd7
{[%clk 0:00:33.4]} 26... Rxd7 {[%clk 0:01:09.5]} 27. Kc2 {[%clk 0:00:32.7]}
27... a4 {[%clk 0:00:57.6]} 28. a3 {[%clk 0:00:25.5]} 28... b3+ {[%clk
0:00:54.4]} 29. Kc3 {[%clk 0:00:25.3]} 29... Rb8 {[%clk 0:00:49.4]} 30. Bd3
{[%clk 0:00:15.8]} 30... Rd5 {[%clk 0:00:42.1]} 31. Bc4 {[%clk 0:00:05.4]} 31...
Rxc5 {[%clk 0:00:36.6]} 32. Rxf4 {[%clk 0:00:04.4]} 32... exf4 {[%clk
0:00:35.3]} 33. Rd3 {[%clk 0:00:05.3]} 33... Rxh5 {[%clk 0:00:30]} 34. Rd7
{[%clk 0:00:05.1]} 34... Rg5 {[%clk 0:00:29.3]} 35. Ra7 {[%clk 0:00:03.6]} 35...
Rxg2 {[%clk 0:00:27.5]} 36. Rxa4 {[%clk 0:00:04.5]} 36... Rxf2 {[%clk
0:00:26.9]} 37. Bd3 {[%clk 0:00:03.7]} 37... h5 {[%clk 0:00:25]} 38. Ra5 {[%clk
0:00:03.3]} 38... Kg8 {[%clk 0:00:15.8]} 39. Bg6 {[%clk 0:00:02.4]} 39... h4
{[%clk 0:00:15]} 0-1

[Event "*** Titled Tuesday Blitz"]
[Site "Chess.com"]
[Date "2021.04.06"]
[Round "1"]
[White "chessbia"]
[Black "horripile"]
[Result "1-0"]
[WhiteElo "2320"]
[BlackElo "2586"]
[TimeControl "180+1"]
[EndTime "10:07:30 PDT"]
[Termination "chessbia won on time"]

1. d4 {[%clk 0:02:55.6]} 1... Nf6 {[%clk 0:02:59.7]} 2. c4 {[%clk 0:02:56]} 2...
e6 {[%clk 0:03:00.1]} 3. Nc3 {[%clk 0:02:56.4]} 3... Bb4 {[%clk 0:03:00.6]} 4.
Qc2 {[%clk 0:02:57]} 4... O-O {[%clk 0:02:59.6]} 5. Nf3 {[%clk 0:02:56.8]} 5...
c5 {[%clk 0:02:55.8]} 6. dxc5 {[%clk 0:02:57]} 6... Na6 {[%clk 0:02:55.8]} 7. g3
{[%clk 0:02:56.3]} 7... Nxc5 {[%clk 0:02:52.2]} 8. Bg2 {[%clk 0:02:56.6]} 8...
Nce4 {[%clk 0:02:52.2]} 9. O-O {[%clk 0:02:57]} 9... Bxc3 {[%clk 0:02:52.4]} 10.
bxc3 {[%clk 0:02:57.8]} 10... d5 {[%clk 0:02:53.1]} 11. cxd5 {[%clk 0:02:57.2]}
11... exd5 {[%clk 0:02:54]} 12. c4 {[%clk 0:02:56.7]} 12... dxc4 {[%clk
0:02:48]} 13. Ba3 {[%clk 0:02:53.4]} 13... Re8 {[%clk 0:02:47.3]} 14. Qxc4
{[%clk 0:02:51.6]} 14... Qa5 {[%clk 0:02:45.9]} 15. Bb4 {[%clk 0:02:48.5]} 15...
Qh5 {[%clk 0:02:45.6]} 16. Rac1 {[%clk 0:02:40.7]} 16... a5 {[%clk 0:02:42.9]}
17. Ba3 {[%clk 0:02:37.7]} 17... b5 {[%clk 0:02:43]} 18. Qc7 {[%clk 0:02:31.4]}
18... Bh3 {[%clk 0:02:38.4]} 19. Bb2 {[%clk 0:02:22.2]} 19... b4 {[%clk
0:02:33.5]} 20. e3 {[%clk 0:01:54.9]} 20... Bxg2 {[%clk 0:01:37.3]} 21. Kxg2
{[%clk 0:01:55.8]} 21... h6 {[%clk 0:01:33.7]} 22. h3 {[%clk 0:01:47.5]} 22...
Qd5 {[%clk 0:01:33]} 23. Qc6 {[%clk 0:01:43]} 23... Rad8 {[%clk 0:01:29.9]} 24.
Qxd5 {[%clk 0:01:42]} 24... Nxd5 {[%clk 0:01:30.5]} 25. Rfd1 {[%clk 0:01:37.2]}
25... Nb6 {[%clk 0:01:29.6]} 26. Rxd8 {[%clk 0:01:34.4]} 26... Rxd8 {[%clk
0:01:30.5]} 27. Rc7 {[%clk 0:01:34.3]} 27... a4 {[%clk 0:01:28.8]} 28. Rb7
{[%clk 0:01:28]} 28... Nd5 {[%clk 0:01:26.2]} 29. Ne5 {[%clk 0:01:24]} 29... Nd6
{[%clk 0:01:26.4]} 30. Ra7 {[%clk 0:01:22.4]} 30... a3 {[%clk 0:01:26.7]} 31.
Bd4 {[%clk 0:01:22.6]} 31... f6 {[%clk 0:01:23.3]} 32. Nd3 {[%clk 0:01:00.3]}
32... Nb5 {[%clk 0:01:22.3]} 33. Ra4 {[%clk 0:00:55.7]} 33... Nbc3 {[%clk
0:01:18.7]} 34. Bxc3 {[%clk 0:00:50.2]} 34... Nxc3 {[%clk 0:01:18.5]} 35. Rxb4
{[%clk 0:00:42.9]} 35... Rxd3 {[%clk 0:01:18.5]} 36. Rb3 {[%clk 0:00:43.4]}
36... f5 {[%clk 0:01:18.9]} 37. Rxa3 {[%clk 0:00:43.7]} 37... Kh7 {[%clk
0:01:16.4]} 38. g4 {[%clk 0:00:43.3]} 38... Kg6 {[%clk 0:01:14.4]} 39. Rb3
{[%clk 0:00:41.5]} 39... Kg5 {[%clk 0:01:13.3]} 40. gxf5 {[%clk 0:00:41]} 40...
Kxf5 {[%clk 0:01:13.6]} 41. Kf3 {[%clk 0:00:41.2]} 41... g5 {[%clk 0:01:07.9]}
42. a4 {[%clk 0:00:40.3]} 42... h5 {[%clk 0:01:07.8]} 43. a5 {[%clk 0:00:37.3]}
43... g4+ {[%clk 0:01:08.1]} 44. hxg4+ {[%clk 0:00:38.1]} 44... hxg4+ {[%clk
0:01:09]} 45. Kg2 {[%clk 0:00:37.5]} 45... Ke4 {[%clk 0:01:08.4]} 46. a6 {[%clk
0:00:35.8]} 46... Nd5 {[%clk 0:01:08.5]} 47. Rxd3 {[%clk 0:00:32.2]} 47... Kxd3
{[%clk 0:01:08.2]} 48. a7 {[%clk 0:00:33.1]} 48... Nb6 {[%clk 0:01:06.7]} 49.
Kg3 {[%clk 0:00:33.5]} 1-0

[Event "*** Titled Tuesday Blitz"]
[Site "Chess.com"]
[Date "2021.04.06"]
[Round "1"]
[White "szachuspl"]
[Black "BeyondMadness"]
[Result "1-0"]
[WhiteElo "2571"]
[BlackElo "2260"]
[TimeControl "180+1"]
[EndTime "10:07:30 PDT"]
[Termination "szachuspl won by resignation"]

1. d4 {[%clk 0:03:00.7]} 1... Nf6 {[%clk 0:02:59.5]} 2. c4 {[%clk 0:03:00.5]}
2... c5 {[%clk 0:02:59.7]} 3. d5 {[%clk 0:03:00.5]} 3... e6 {[%clk 0:03:00.1]}
4. Nc3 {[%clk 0:03:00.5]} 4... exd5 {[%clk 0:03:00.5]} 5. cxd5 {[%clk
0:03:01.4]} 5... d6 {[%clk 0:03:00.9]} 6. e4 {[%clk 0:03:01.5]} 6... g6 {[%clk
0:03:00.8]} 7. Nf3 {[%clk 0:03:01.9]} 7... a6 {[%clk 0:03:00.3]} 8. a4 {[%clk
0:03:01.8]} 8... Bg4 {[%clk 0:02:59.8]} 9. Be2 {[%clk 0:03:01.5]} 9... Bxf3
{[%clk 0:03:00]} 10. Bxf3 {[%clk 0:03:01.8]} 10... Bg7 {[%clk 0:03:00.7]} 11.
O-O {[%clk 0:03:02]} 11... O-O {[%clk 0:03:00.8]} 12. Bf4 {[%clk 0:03:00.9]}
12... Ne8 {[%clk 0:02:58.4]} 13. a5 {[%clk 0:02:59.3]} 13... Nd7 {[%clk
0:02:57.8]} 14. Re1 {[%clk 0:02:56.5]} 14... Rb8 {[%clk 0:02:54.2]} 15. Be2
{[%clk 0:02:54.6]} 15... Qe7 {[%clk 0:02:49.9]} 16. Bf1 {[%clk 0:02:52.3]} 16...
Nc7 {[%clk 0:02:46]} 17. Ra3 {[%clk 0:02:51]} 17... b5 {[%clk 0:02:44]} 18. axb6
{[%clk 0:02:50.4]} 18... Rxb6 {[%clk 0:02:44.6]} 19. Na4 {[%clk 0:02:27.4]}
19... Rb4 {[%clk 0:02:41.8]} 20. f3 {[%clk 0:02:23.8]} 20... Nb5 {[%clk
0:02:27]} 21. Ra2 {[%clk 0:02:18.6]} 21... Be5 {[%clk 0:02:00.9]} 22. Bd2 {[%clk
0:02:13.4]} 22... Rd4 {[%clk 0:01:59.8]} 23. Qe2 {[%clk 0:02:08.9]} 23... f5
{[%clk 0:01:41.1]} 24. Bc3 {[%clk 0:02:04.4]} 24... fxe4 {[%clk 0:01:31.6]} 25.
fxe4 {[%clk 0:01:57.2]} 25... Qh4 {[%clk 0:01:08]} 26. g3 {[%clk 0:01:52.3]}
26... Qf6 {[%clk 0:00:51.6]} 27. Bg2 {[%clk 0:01:49.5]} 27... Rxa4 {[%clk
0:00:39.7]} 28. Rxa4 {[%clk 0:01:35.1]} 28... Bxc3 {[%clk 0:00:37.6]} 29. Rf1
{[%clk 0:01:26.3]} 29... Bd4+ {[%clk 0:00:35.7]} 30. Kh1 {[%clk 0:01:22.6]}
30... Qe7 {[%clk 0:00:34.9]} 31. Rxf8+ {[%clk 0:01:21.6]} 31... Qxf8 {[%clk
0:00:33.5]} 32. Rxa6 {[%clk 0:01:21.1]} 32... Nc7 {[%clk 0:00:28.2]} 33. Ra1
{[%clk 0:01:09.6]} 33... Ne5 {[%clk 0:00:27.4]} 34. Rf1 {[%clk 0:01:06.1]} 34...
Qb8 {[%clk 0:00:27.1]} 35. Ra1 {[%clk 0:00:52.6]} 35... Qxb2 {[%clk 0:00:23.6]}
36. Qxb2 {[%clk 0:00:52.2]} 36... Bxb2 {[%clk 0:00:23.9]} 37. Ra7 {[%clk
0:00:50.8]} 37... Nb5 {[%clk 0:00:22]} 38. Rb7 {[%clk 0:00:46.9]} 38... c4
{[%clk 0:00:22.2]} 39. Rxb5 {[%clk 0:00:43.8]} 39... c3 {[%clk 0:00:22.4]} 40.
Rb8+ {[%clk 0:00:44.4]} 40... Kg7 {[%clk 0:00:21.7]} 41. Rc8 {[%clk 0:00:45.1]}
41... Nd3 {[%clk 0:00:19.8]} 42. e5 {[%clk 0:00:35]} 42... Nxe5 {[%clk
0:00:17.4]} 43. Be4 {[%clk 0:00:35.1]} 43... Ng4 {[%clk 0:00:16.6]} 44. Kg2
{[%clk 0:00:34.7]} 44... Ne3+ {[%clk 0:00:14.5]} 45. Kf3 {[%clk 0:00:34.6]}
45... Nf1 {[%clk 0:00:11.6]} 46. h3 {[%clk 0:00:30.3]} 46... Nd2+ {[%clk
0:00:10.7]} 47. Ke3 {[%clk 0:00:30.5]} 47... Nf1+ {[%clk 0:00:09]} 48. Kf2
{[%clk 0:00:27.8]} 48... Nd2 {[%clk 0:00:08.4]} 49. Bc2 {[%clk 0:00:26.9]} 49...
Ne4+ {[%clk 0:00:07.3]} 50. Bxe4 {[%clk 0:00:26.2]} 1-0